bitfinex/quotes_SOLUSD_20220116
["timestamp","ask_amount","ask_price","bid_price","bid_amount"]
[1642342661161,1.70077588,149.42,149.32,1.88765107]
[1642342661363,10.0457,149.39,149.32,1.38765107]
[1642342661565,36.94866698,149.38,149.29,21.83490725]
[1642342661764,37.20866698,149.38,149.29,21.83490725]
[1642342661964,37.20866698,149.38,149.29,18.05092651]
[1642342662366,10.0432,149.41,149.29,18.30092651]
[1642342663369,43.82175611,149.4,149.29,18.30092651]
[1642342663566,10.0451,149.38,149.29,18.30092651]
[1642342663767,0.26,149.39,149.29,18.30092651]
[1642342664066,0.26,149.37,149.29,18.30092651]
[1642342664266,0.26,149.39,149.29,18.30092651]
[1642342664466,0.26,149.39,149.29,18.05092651]
[1642342664869,0.26,149.39,149.29,18.30092651]
[1642342665470,43.82175611,149.4,149.29,18.30092651]
[1642342665768,43.82175611,149.4,149.3,0.26]
[1642342666169,43.82175611,149.4,149.3,1.3423951]
[1642342666369,24.3772,149.43,149.3,1.5923951]
[1642342666968,24.1935,149.49,149.3,7.5923951]
[1642342667169,77.23496929,149.55,149.31,24.1733]
[1642342667170,23.752,149.53,149.31,24.1733]
[1642342667369,37.34301973,149.52,149.32,0.26]
[1642342667669,10.0372,149.5,149.32,29.70352937]
[1642342667968,10.0372,149.5,149.34,3.56588864]
[1642342668169,10.0372,149.5,149.35,22.9792]
[1642342668369,37.34301973,149.52,149.35,30.5715951]
[1642342668573,0.26,149.49,149.36,1.0823951]
[1642342668774,0.26,149.51,149.36,1.0823951]
[1642342668971,0.26,149.51,149.37,0.26]
[1642342669169,0.26,149.51,149.37,24.4206]
[1642342669370,10.2964,149.51,149.37,24.1606]
[1642342669570,11.99717588,149.51,149.37,24.1606]
[1642342669971,10.0364,149.51,149.37,24.1606]
[1642342670174,37.34301973,149.52,149.37,32.7716]
[1642342670570,37.34301973,149.52,149.37,33.8539951]
[1642342670771,37.34301973,149.52,149.38,0.26]
[1642342671173,47.37871973,149.52,149.37,24.4106]
[1642342671369,0.26,149.51,149.37,24.4106]
[1642342672171,47.37871973,149.52,149.37,24.4106]
[1642342672373,47.37871973,149.52,149.38,0.26]
[1642342673372,0.26,149.51,149.38,0.26]
[1642342673975,37.34301973,149.52,149.39,1.0823951]
[1642342674172,37.34301973,149.52,149.4,18.05092651]
[1642342674372,37.34301973,149.52,149.4,18.56092651]
[1642342674571,37.34301973,149.52,149.41,1.0823951]
[1642342674772,37.34301973,149.52,149.42,0.26]
[1642342674974,22.6603,149.59,149.42,0.26]
[1642342675179,23.3499,149.6,149.42,0.26]
[1642342675180,10.0304,149.6,149.43,1.0823951]
[1642342675374,10.0304,149.6,149.44,0.26]
[1642342675575,10.0304,149.6,149.44,11.33782601]
[1642342675774,10.0304,149.6,149.45,25.2952951]
[1642342675974,50.05368356,149.59,149.46,3.56588864]
[1642342676174,50.05368356,149.59,149.46,3.82588864]
[1642342676376,50.05368356,149.59,149.46,4.07588864]
[1642342676674,50.05368356,149.59,149.46,10.07588864]
[1642342676874,50.05368356,149.59,149.46,4.07588864]
[1642342677878,0.26,149.58,149.46,4.07588864]
[1642342678079,50.05368356,149.59,149.46,4.07588864]
[1642342679480,0.26,149.58,149.46,3.81588864]
[1642342681387,0.26,149.58,149.47,0.26]
[1642342681583,0.26,149.58,149.46,3.81588864]
[1642342683707,0.26,149.58,149.46,3.56588864]
[1642342684611,10.2918,149.58,149.45,24.2129]
[1642342685610,10.2918,149.58,149.46,18.09092361]
[1642342686011,50.05368356,149.59,149.46,18.09092361]
[1642342686211,50.05368356,149.59,149.47,0.26]
[1642342686811,50.05368356,149.59,149.46,18.34092361]
[1642342687812,10.0322,149.57,149.46,18.34092361]
[1642342688213,0.26,149.56,149.46,18.34092361]
[1642342688412,0.26,149.58,149.46,18.34092361]
[1642342689515,10.0329,149.56,149.46,18.34092361]
[1642342689917,0.26,149.55,149.46,18.09092361]
[1642342690316,0.26,149.57,149.46,18.09092361]
[1642342693418,76.7917,149.58,149.46,18.09092361]
[1642342693618,10.0317,149.58,149.46,18.09092361]
[1642342694220,10.0317,149.58,149.47,0.26]
[1642342694718,10.0317,149.58,149.46,18.09092361]
[1642342694924,0.26,149.57,149.46,18.09092361]
[1642342695526,10.2923,149.57,149.46,18.09092361]
[1642342696224,10.2923,149.57,149.45,24.2129]
[1642342697124,10.2923,149.57,149.46,15.8999279]
[1642342697325,76.7934,149.56,149.46,15.8999279]
[1642342697527,76.7934,149.56,149.46,22.6389279]
[1642342697724,0.26,149.55,149.46,22.6389279]
[1642342699227,0.26,149.57,149.46,22.6389279]
[1642342699426,50.05368356,149.59,149.46,22.6389279]
[1642342699626,33.4346,149.64,149.47,0.26]
[1642342699827,24.46,149.65,149.47,23.5985]
[1642342700026,24.46,149.65,149.48,1.0823951]
[1642342700428,24.46,149.65,149.49,0.26]
[1642342700627,42.47907271,149.61,149.49,8.036]
[1642342700827,42.73907271,149.61,149.51,5.71688725]
[1642342701833,100.2746,149.62,149.51,5.71688725]
[1642342702230,28.0918602,149.65,149.51,5.71688725]
[1642342702430,28.0918602,149.65,149.52,23.2045]
[1642342702631,28.0918602,149.65,149.52,31.6655]
[1642342702830,44.35774424,149.64,149.52,31.6655]
[1642342703433,54.38544424,149.64,149.52,31.6655]
[1642342703632,0.26,149.63,149.52,31.6655]
[1642342703830,54.38544424,149.64,149.52,31.9155]
[1642342704032,44.35774424,149.64,149.52,31.9155]
[1642342704832,44.35774424,149.64,149.53,0.26]
[1642342705231,0.26,149.63,149.53,0.26]
[1642342706633,13.6576602,149.67,149.53,1.3423951]
[1642342706835,3.6318602,149.67,149.53,1.3423951]
[1642342707036,3.6318602,149.67,149.53,1.5923951]
[1642342707233,3.6318602,149.68,149.53,1.5923951]
[1642342707435,3.6318602,149.68,149.53,25.5033951]
[1642342707633,48.27339247,149.67,149.53,25.5033951]
[1642342708035,48.27339247,149.67,149.54,24.2278]
[1642342708436,48.27339247,149.67,149.55,0.26]
[1642342708642,48.27339247,149.67,149.55,7.898]
[1642342709135,48.27339247,149.67,149.56,15.31602088]
[1642342709338,48.27339247,149.67,149.57,0.26]
[1642342710262,0.26,149.66,149.57,0.26]
[1642342711065,48.27339247,149.67,149.57,0.26]
[1642342711463,10.0243,149.69,149.57,8.501]
[1642342711664,24.8745,149.7,149.57,8.501]
[1642342711865,24.8745,149.7,149.57,8.751]
[1642342712266,24.8745,149.7,149.58,22.9076]
[1642342712464,75.04509477,149.7,149.59,0.26]
[1642342715966,0.26,149.69,149.59,0.26]
[1642342718575,67.02,149.69,149.58,22.9076]
[1642342718781,67.02,149.69,149.54,1.0823951]
[1642342718976,68.72077588,149.69,149.41,105.4264]
[1642342719175,68.72077588,149.69,149.49,3.78398074]
[1642342719375,68.72077588,149.69,149.48,27.26888074]
[1642342719776,10.0286,149.63,149.49,17.40372763]
[1642342719978,42.58034803,149.62,149.49,17.40372763]
[1642342720176,42.84034803,149.62,149.49,17.40372763]
[1642342720577,42.84034803,149.62,149.5,23.3734]
[1642342721079,0.26,149.62,149.5,23.3734]
[1642342721279,0.26,149.62,149.5,24.70391446]
[1642342721679,10.0286,149.63,149.5,24.70391446]
[1642342721878,46.1658,149.65,149.51,66.76]
[1642342722077,46.1658,149.65,149.51,73.96841468]
[1642342722278,46.1658,149.65,149.52,1.34051446]
[1642342722481,23.653,149.65,149.52,12.66834047]
[1642342722679,23.653,149.65,149.53,25.24021446]
[1642342722979,23.653,149.65,149.54,0.26]
[1642342723179,0.26,149.64,149.54,5.55360198]
[1642342723382,23.653,149.65,149.55,1.08051446]
[1642342723781,23.653,149.65,149.56,0.26]
[1642342724181,23.653,149.65,149.57,1.08051446]
[1642342724781,0.26,149.64,149.57,1.08051446]
[1642342725180,23.653,149.65,149.57,1.08051446]
[1642342725783,23.653,149.65,149.56,0.26]
[1642342725986,23.653,149.65,149.56,1.34051446]
[1642342726387,23.653,149.65,149.56,1.59051446]
[1642342726785,0.26,149.64,149.56,0.51]
[1642342727387,0.26,149.64,149.56,0.26]
[1642342728088,0.26,149.64,149.55,22.9845]
[1642342728889,0.26,149.64,149.54,4.21308752]
[1642342729095,67.02,149.64,149.46,9.786]
[1642342729289,1.70077588,149.63,149.48,23.8198]
[1642342729494,10.0316,149.59,149.48,23.8198]
[1642342729889,0.26,149.58,149.48,23.8198]
[1642342730094,47.69933981,149.58,149.49,18.88485687]
[1642342730297,0.26,149.58,149.49,18.88485687]
[1642342730692,0.26,149.6,149.49,18.88485687]
[1642342731295,44.37577719,149.6,149.49,18.88485687]
[1642342731497,10.032,149.58,149.49,18.88485687]
[1642342731897,0.26,149.57,149.49,18.88485687]
[1642342733695,10.032,149.58,149.49,18.88485687]
[1642342733896,54.14617719,149.6,149.49,19.13485687]
[1642342734098,54.14617719,149.6,149.5,0.26]
[1642342734499,23.4092,149.61,149.5,0.26]
[1642342734698,23.4092,149.61,149.5,23.91479449]
[1642342734909,23.4092,149.61,149.5,24.16479449]
[1642342735099,33.439,149.61,149.5,22.5706]
[1642342735499,42.45809758,149.6,149.5,22.5706]
[1642342735701,42.71809758,149.6,149.5,22.5706]
[1642342738928,109.47809758,149.6,149.49,18.88485687]
[1642342739129,119.50839758,149.6,149.44,1.08419449]
[1642342739330,66.76,149.58,149.44,23.1211]
[1642342739733,0.26,149.57,149.44,23.1211]
[1642342739935,24.0323,149.57,149.44,23.1211]
[1642342740233,24.0323,149.57,149.45,19.00685817]
[1642342740435,24.0323,149.57,149.45,19.25685817]
[1642342740839,24.0323,149.57,149.46,24.6314]
[1642342741235,24.0323,149.57,149.46,30.8814]
[1642342741736,23.7723,149.57,149.46,24.6314]
[1642342741939,23.7723,149.57,149.46,24.8814]
[1642342742537,23.7723,149.57,149.46,35.95922601]
[1642342742940,52.48849758,149.6,149.47,0.26]
[1642342743339,52.48849758,149.6,149.47,11.07782601]
[1642342743737,24.2888,149.59,149.48,23.5658]
[1642342743939,24.5488,149.59,149.48,23.8158]
[1642342744139,24.2888,149.59,149.48,23.8158]
[1642342744340,24.2888,149.59,149.49,0.26]
[1642342744539,10.0292,149.62,149.49,0.26]
[1642342744839,24.4283,149.63,149.49,1.34112603]
[1642342745044,24.4283,149.63,149.5,12.15895204]
[1642342745241,24.4283,149.63,149.51,22.7837]
[1642342745441,45.94507873,149.62,149.52,2.60995698]
[1642342745845,99.4936,149.66,149.53,0.26]
[1642342746041,99.4936,149.66,149.53,26.25712603]
[1642342746242,32.7336,149.66,149.54,1.08112603]
[1642342746447,22.7073,149.66,149.55,0.26]
[1642342746841,37.34435257,149.65,149.53,24.916]
[1642342747247,60.98955257,149.65,149.53,24.916]
[1642342747542,0.26,149.64,149.53,24.916]
[1642342747943,0.26,149.64,149.53,25.166]
[1642342748444,0.26,149.64,149.53,26.24712603]
[1642342749342,22.7073,149.66,149.54,0.26]
[1642342749545,23.5727,149.68,149.54,0.26]
[1642342749743,23.5727,149.68,149.55,12.15895204]
[1642342749944,23.5727,149.68,149.56,0.26]
[1642342750144,23.5727,149.68,149.56,1.34112603]
[1642342750345,38.75275888,149.67,149.57,20.0879842]
[1642342750545,23.5727,149.68,149.57,20.0879842]
[1642342750746,23.5727,149.68,149.58,24.72522603]
[1642342750948,0.26,149.67,149.58,24.97522603]
[1642342751548,37.3397597,149.67,149.58,24.97522603]
[1642342751749,37.3397597,149.67,149.58,23.8941]
[1642342752146,23.5727,149.68,149.58,24.97522603]
[1642342753146,69.6265957,149.68,149.58,24.97522603]
[1642342753950,0.26,149.67,149.58,24.97522603]
[1642342756848,0.26,149.67,149.58,24.71522603]
[1642342760054,0.26,149.67,149.58,23.21522603]
[1642342761956,0.26,149.67,149.58,22.96522603]
[1642342762155,0.26,149.67,149.58,21.8841]
[1642342763256,0.26,149.67,149.58,37.41299358]
[1642342763457,10.2856,149.67,149.58,15.52889358]
[1642342763856,66.76,149.66,149.54,23.3007]
[1642342764056,66.76,149.66,149.54,0.25]
[1642342764258,0.26,149.65,149.54,0.25]
[1642342764458,0.26,149.65,149.51,6.31729988]
[1642342764661,33.198,149.65,149.5,339.24063668]
[1642342764859,68.46077588,149.64,149.51,16.80060036]
[1642342765061,108.99729439,149.63,149.51,16.80060036]
[1642342765259,109.25729439,149.63,149.51,18.13172639]
[1642342765459,0.26,149.62,149.51,18.13172639]
[1642342766361,0.26,149.62,149.52,1.08112603]
[1642342766561,0.26,149.62,149.52,25.94472603]
[1642342766762,0.26,149.62,149.52,26.19472603]
[1642342768165,0.26,149.62,149.51,16.80060036]
[1642342768364,0.26,149.62,149.51,17.05060036]
[1642342768963,0.26,149.62,149.51,16.80060036]
[1642342769365,0.26,149.62,149.51,17.05060036]
[1642342769565,0.26,149.62,149.51,16.80060036]
[1642342771091,0.26,149.62,149.51,17.05060036]
[1642342771491,0.26,149.62,149.52,24.347]
[1642342771692,42.23729439,149.63,149.52,24.347]
[1642342772696,42.23729439,149.63,149.52,24.597]
[1642342773095,0.26,149.62,149.52,24.597]
[1642342773297,0.26,149.62,149.52,24.347]
[1642342773695,0.26,149.62,149.52,24.597]
[1642342779413,0.26,149.62,149.52,24.347]
[1642342780614,15.6574,149.62,149.47,10.2177]
[1642342780814,38.334,149.62,149.48,22.8725]
[1642342781019,1.70077588,149.61,149.48,22.8725]
[1642342781417,0.26,149.6,149.48,22.8725]
[1642342781618,0.26,149.6,149.49,17.5255117]
[1642342781815,10.2904,149.6,149.49,17.5255117]
[1642342782016,32.878,149.6,149.49,17.5255117]
[1642342782217,66.76,149.59,149.49,17.5255117]
[1642342782417,41.88808657,149.58,149.49,17.5255117]
[1642342783823,41.88808657,149.58,149.49,17.7755117]
[1642342784020,41.88808657,149.58,149.47,10.2177]
[1642342784224,66.76,149.57,149.47,10.2177]
[1642342784420,0.26,149.56,149.47,10.2177]
[1642342785022,0.26,149.56,149.48,15.59376445]
[1642342785422,10.2929,149.56,149.47,10.2177]
[1642342786423,10.2929,149.56,149.48,16.00492072]
[1642342786623,0.26,149.56,149.48,16.00492072]
[1642342786824,0.26,149.57,149.48,16.00492072]
[1642342787824,10.2925,149.57,149.48,16.00492072]
[1642342788224,10.0325,149.57,149.48,16.00492072]
[1642342788426,65.89168657,149.58,149.49,1.08552182]
[1642342788658,24.2636,149.58,149.49,1.08552182]
[1642342788850,24.2636,149.58,149.49,1.33552182]
[1642342789251,10.0311,149.59,149.5,1.08552182]
[1642342789652,57.96896542,149.59,149.5,1.08552182]
[1642342789851,10.0311,149.59,149.5,1.33552182]
[1642342790054,1.89945214,149.62,149.5,20.95534783]
[1642342790253,1.89945214,149.62,149.51,1.34552182]
[1642342790452,1.89945214,149.62,149.51,1.59552182]
[1642342790652,1.89945214,149.62,149.52,1.08552182]
[1642342790953,36.26694291,149.61,149.53,5.61189443]
[1642342791353,0.26,149.6,149.53,5.61189443]
[1642342792663,0.26,149.6,149.53,6.69741625]
[1642342792860,0.26,149.6,149.53,6.94741625]
[1642342793062,0.26,149.62,149.53,6.94741625]
[1642342793462,25.68305214,149.64,149.53,6.94741625]
[1642342793665,1.89945214,149.64,149.54,0.26]
[1642342793863,1.89945214,149.64,149.54,23.7675]
[1642342794064,1.89945214,149.64,149.55,1.08552182]
[1642342794466,1.89945214,149.64,149.56,0.26]
[1642342794664,1.89945214,149.64,149.56,7.241]
[1642342794864,1.89945214,149.64,149.57,1.08552182]
[1642342795064,23.2704,149.67,149.57,1.08552182]
[1642342795263,23.2704,149.67,149.58,0.26]
[1642342795464,35.53698003,149.66,149.58,16.26492072]
[1642342795664,35.79698003,149.66,149.58,16.00492072]
[1642342795865,35.79698003,149.66,149.58,16.25492072]
[1642342796066,0.26,149.66,149.58,16.25492072]
[1642342796464,0.26,149.66,149.58,17.34044254]
[1642342797068,46.60317959,149.66,149.58,17.34044254]
[1642342797265,46.60317959,149.66,149.58,16.25492072]
[1642342797667,46.60317959,149.66,149.58,16.00492072]
[1642342798066,46.60317959,149.66,149.57,23.0639]
[1642342798667,113.36317959,149.66,149.57,23.0639]
[1642342799066,113.36317959,149.66,149.58,18.14606376]
[1642342800268,113.36317959,149.66,149.57,23.0639]
[1642342800968,113.36317959,149.66,149.52,11.85620064]
[1642342801169,23.5393,149.65,149.53,42.26826775]
[1642342801371,0.26,149.64,149.53,42.26826775]
[1642342801571,67.02,149.64,149.53,42.26826775]
[1642342802473,77.0477,149.64,149.53,42.26826775]
[1642342802971,77.0477,149.64,149.53,24.0043]
[1642342803478,77.0477,149.64,149.53,24.2543]
[1642342803671,77.0477,149.64,149.53,24.0043]
[1642342803971,77.0477,149.64,149.54,18.33366571]
[1642342805675,0.26,149.64,149.54,17.83366571]
[1642342805875,0.26,149.64,149.54,18.08366571]
[1642342806376,23.5393,149.65,149.54,18.08366571]
[1642342807609,0.26,149.64,149.54,18.08366571]
[1642342808009,23.5393,149.65,149.54,18.08366571]
[1642342808207,23.5393,149.65,149.55,22.9339]
[1642342809305,0.26,149.64,149.55,22.9339]
[1642342811711,48.24263173,149.66,149.55,22.9339]
[1642342811911,48.24263173,149.66,149.56,0.26]
[1642342811912,1.89945214,149.66,149.56,0.26]
[1642342812314,1.89945214,149.66,149.57,1.08552182]
[1642342812916,0.26,149.65,149.58,3.28314944]
[1642342814819,0.26,149.66,149.58,3.53314944]
[1642342815020,0.26,149.66,149.58,11.84114944]
[1642342816219,0.26,149.66,149.58,12.92667126]
[1642342816422,0.26,149.68,149.59,25.0834]
[1642342816920,0.26,149.68,149.61,16.30456853]
[1642342817218,0.26,149.68,149.61,23.42509035]
[1642342817421,1.89945214,149.69,149.61,23.67509035]
[1642342817622,1.89945214,149.69,149.62,0.26]
[1642342818219,1.89945214,149.72,149.62,0.26]
[1642342818420,1.89945214,149.72,149.62,24.1014]
[1642342818648,1.89945214,149.72,149.63,1.08552182]
[1642342818822,0.26,149.71,149.63,1.08552182]
[1642342819020,0.26,149.71,149.63,1.33552182]
[1642342819422,1.89945214,149.72,149.64,5.07224662]
[1642342819622,1.89945214,149.74,149.64,13.47224662]
[1642342819822,1.89945214,149.74,149.65,24.0049]
[1642342820323,1.89945214,149.74,149.65,24.2549]
[1642342820723,1.89945214,149.74,149.65,25.34042182]
[1642342820724,0.26,149.73,149.65,25.34042182]
[1642342820923,0.26,149.73,149.65,25.09042182]
[1642342821122,9.73,149.75,149.65,25.09042182]
[1642342821323,9.73,149.75,149.66,0.26]
[1642342821724,9.73,149.75,149.67,1.08552182]
[1642342821925,9.73,149.75,149.68,0.26]
[1642342822423,9.73,149.75,149.69,1.08552182]
[1642342822627,9.73,149.75,149.68,16.30456853]
[1642342822824,9.73,149.75,149.68,16.55456853]
[1642342823324,0.26,149.74,149.68,16.55456853]
[1642342823724,0.26,149.76,149.68,16.55456853]
[1642342823924,0.26,149.76,149.68,17.64009035]
[1642342824526,9.73,149.79,149.69,0.26]
[1642342824727,9.73,149.79,149.69,23.3691]
[1642342824927,9.73,149.79,149.69,23.6191]
[1642342825131,46.78851947,149.78,149.69,23.6191]
[1642342825828,0.26,149.77,149.69,23.6191]
[1642342826259,0.26,149.78,149.69,23.6191]
[1642342826961,42.75279305,149.78,149.69,23.6191]
[1642342827361,42.75279305,149.78,149.69,24.70462182]
[1642342827763,0.26,149.78,149.69,24.70462182]
[1642342827960,9.73,149.79,149.69,24.70462182]
[1642342828761,45.03008467,149.78,149.69,24.70462182]
[1642342829163,9.73,149.79,149.69,24.70462182]
[1642342830269,9.73,149.79,149.69,91.46462182]
[1642342830465,9.73,149.79,149.69,97.46462182]
[1642342830865,22.5134,149.83,149.69,97.46462182]
[1642342831068,35.75805214,149.84,149.69,97.46462182]
[1642342831268,24.1286,149.84,149.69,97.46462182]
[1642342831469,9.73,149.83,149.69,107.19462182]
[1642342833472,9.73,149.83,149.69,129.73581696]
[1642342833688,9.73,149.83,149.69,136.00616698]
[1642342834071,1.89945214,149.86,149.69,136.00616698]
[1642342834270,1.89945214,149.86,149.69,142.91016698]
[1642342834771,32.4988,149.87,149.69,142.91016698]
[1642342835972,32.4988,149.87,149.71,0.31688629]
[1642342836172,32.4988,149.87,149.72,9.73]
[1642342836373,0.26,149.86,149.73,29.83474662]
[1642342836671,0.26,149.86,149.74,66.76]
[1642342836874,32.2588,149.87,149.77,16.30456853]
[1642342837172,32.2588,149.87,149.77,39.95126853]
[1642342837173,0.26,149.86,149.77,39.95126853]
[1642342837402,0.26,149.86,149.78,0.26]
[1642342837671,9.73,149.87,149.78,0.26]
[1642342839476,9.73,149.87,149.77,40.20126853]
[1642342839675,9.73,149.87,149.77,46.20126853]
[1642342839876,9.73,149.87,149.77,40.20126853]
[1642342841180,38.56774289,149.86,149.77,40.20126853]
[1642342841382,38.82774289,149.86,149.77,40.20126853]
[1642342841681,0.26,149.86,149.77,40.20126853]
[1642342845819,9.73,149.87,149.77,40.20126853]
[1642342846118,9.73,149.87,149.78,0.26]
[1642342846318,9.73,149.87,149.77,40.20126853]
[1642342846716,9.73,149.87,149.77,49.98296853]
[1642342846915,9.73,149.87,149.78,0.26]
[1642342849722,0.26,149.86,149.78,0.26]
[1642342850120,9.73,149.87,149.78,0.26]
[1642342850320,9.99,149.87,149.78,0.26]
[1642342853125,9.99,149.87,149.77,49.98296853]
[1642342853428,43.77220748,149.86,149.77,49.98296853]
[1642342853629,9.73,149.85,149.77,23.8967]
[1642342854629,9.73,149.85,149.77,44.177781]
[1642342855030,9.73,149.85,149.77,20.531081]
[1642342855832,9.73,149.85,149.77,20.281081]
[1642342857368,0.26,149.84,149.77,20.281081]
[1642342858772,9.73,149.85,149.77,20.281081]
[1642342859975,9.73,149.85,149.77,20.531081]
[1642342860171,0.26,149.84,149.77,20.281081]
[1642342861176,0.26,149.84,149.74,22.8923]
[1642342861374,9.73,149.83,149.74,23.1423]
[1642342861775,9.73,149.83,149.74,0.25]
[1642342862175,38.76794571,149.82,149.72,20.52062176]
[1642342862377,9.73,149.81,149.72,20.77062176]
[1642342862877,9.73,149.81,149.72,43.46472176]
[1642342863477,9.73,149.81,149.73,1.08552182]
[1642342863878,9.73,149.81,149.73,1.33552182]
[1642342865482,0.26,149.8,149.73,1.33552182]
[1642342866682,0.26,149.8,149.73,0.25]
[1642342866882,0.26,149.8,149.72,43.46472176]
[1642342867783,0.26,149.8,149.72,43.21472176]
[1642342868784,0.26,149.8,149.72,20.52062176]
[1642342868986,9.73,149.79,149.72,20.52062176]
[1642342869185,41.91495581,149.78,149.72,20.52062176]
[1642342869785,41.91495581,149.78,149.72,20.77062176]
[1642342870388,9.73,149.79,149.72,20.77062176]
[1642342871689,9.73,149.79,149.72,21.85602376]
[1642342872290,9.73,149.79,149.73,0.26]
[1642342872689,9.73,149.79,149.74,1.085402]
[1642342872890,9.73,149.79,149.75,0.59619339]
[1642342874793,9.73,149.83,149.75,0.59619339]
[1642342875017,9.73,149.83,149.75,0.85619339]
[1642342876224,0.26,149.82,149.75,0.85619339]
[1642342877722,0.26,149.82,149.75,1.94159539]
[1642342877921,9.73,149.83,149.75,2.19159539]
[1642342878121,9.73,149.85,149.75,10.00559539]
[1642342878321,9.73,149.85,149.75,16.00559539]
[1642342878820,9.73,149.85,149.75,10.00559539]
[1642342879020,9.73,149.85,149.75,8.92019339]
[1642342879225,9.73,149.85,149.76,1.085402]
[1642342879421,9.73,149.85,149.76,1.335402]
[1642342879823,9.73,149.85,149.77,0.26]
[1642342880323,9.73,149.85,149.76,8.380402]
[1642342880522,9.73,149.85,149.76,1.335402]
[1642342880923,9.73,149.85,149.76,0.25]
[1642342881322,9.73,149.85,149.75,0.59619339]
[1642342881724,0.26,149.84,149.75,0.59619339]
[1642342882122,0.26,149.84,149.75,0.85619339]
[1642342884024,9.73,149.85,149.75,68.70159539]
[1642342884228,11.62945214,149.87,149.75,76.79659539]
[1642342884426,11.62945214,149.87,149.76,22.8409]
[1642342884627,9.73,149.87,149.76,22.8409]
[1642342884829,9.73,149.87,149.77,1.345402]
[1642342885029,1.89945214,149.88,149.78,83.04122239]
[1642342885230,1.89945214,149.88,149.79,23.6026]
[1642342885432,1.89945214,149.88,149.79,23.8626]
[1642342885630,1.89945214,149.88,149.8,66.76]
[1642342885830,1.89945214,149.88,149.81,0.26]
[1642342886030,1.89945214,149.88,149.81,13.71859276]
[1642342886235,5.53131234,149.91,149.81,37.47059276]
[1642342886432,1.89945214,149.91,149.81,37.72059276]
[1642342887334,0.26,149.9,149.81,37.72059276]
[1642342887732,0.26,149.9,149.81,38.80599476]
[1642342887932,11.62945214,149.93,149.81,38.80599476]
[1642342888332,11.62945214,149.93,149.81,44.80599476]
[1642342888935,1.89945214,149.93,149.82,0.310239]
[1642342889135,1.89945214,149.94,149.82,10.040239]
[1642342889339,1.89945214,149.94,149.84,66.76]
[1642342889536,1.89945214,149.94,149.85,24.4467]
[1642342889735,1.39945214,149.94,149.86,16.28122239]
[1642342889937,1.39945214,149.94,149.87,0.26]
[1642342890337,13.3618602,149.97,149.87,0.26]
[1642342890535,9.73,149.97,149.87,23.1432]
[1642342890937,9.73,149.97,149.87,23.3932]
[1642342892337,9.73,149.97,149.87,0.25]
[1642342892536,33.7733,149.97,149.87,0.25]
[1642342892736,0.26,149.96,149.86,16.53122239]
[1642342893774,0.26,149.96,149.87,24.1231]
[1642342894176,0.26,149.96,149.87,24.3731]
[1642342894376,0.26,149.96,149.87,8.522]
[1642342894978,33.7733,149.97,149.87,8.522]
[1642342895679,33.7733,149.97,149.88,0.26]
[1642342896377,0.26,149.96,149.88,0.26]
[1642342896977,0.26,149.96,149.87,23.223]
[1642342898381,0.26,149.96,149.88,0.26]
[1642342899481,9.73,150.0,149.88,0.26]
[1642342899686,9.73,150.0,149.88,1.345402]
[1642342899884,9.73,150.0,149.89,4.83559276]
[1642342900182,9.73,150.0,149.9,23.4488]
[1642342900382,9.73,150.0,149.9,29.3958]
[1642342900583,9.73,150.0,149.9,30.481202]
[1642342900782,9.73,150.0,149.91,66.76]
[1642342901081,23.2379,150.02,149.91,67.845402]
[1642342901284,23.2379,150.02,149.92,23.657]
[1642342901483,23.2379,150.02,149.93,16.28122239]
[1642342901684,23.2379,150.02,149.93,24.63622239]
[1642342901884,23.2379,150.02,149.94,0.26]